[Event "POL-chT DMP Ekstraliga 2019"]
[Site "Katowice"]
[Date "2019.08.30"]
[Round "3.10"]
[White "Nasuta, Grzegorz"]
[Black "Warakomski, Tomasz"]
[Result "1-0"]
[ECO "C44"]
[WhiteElo "2533"]
[BlackElo "2497"]
[Annotator "ChessBase"]
[PlyCount "51"]
[EventDate "2019.08.28"]
[EventType "team-tourn"]
[EventCountry "POL"]
[SourceTitle "playchess.com"]
[Source "ChessBase"]
[SourceQuality "1"]
[TimeControl "40/5400+30:1800+30"]

1. e4 {[%emt 0:00:00]} e5 {[%emt 0:00:00]} 2. Nf3 {[%emt 0:00:00]} Nc6 {[%emt 0:00:00]} 3. d4 {[%emt 0:00:47]} exd4 {[%emt 0:00:00]} 4. Nxd4 {[%emt 0:00:04]} Qf6 {[%emt 0:03:48]} 5. Nf3 {[%emt 0:01:52]} Bb4+ {[%emt 0:13:49]} 6. c3 {[%emt 0:00:21]} Bc5 {[%emt 0:00:03]} 7. Be2 {[%emt 0:00:28]} d6 {[%emt 0:01:04]} 8. O-O {[%emt 0:02:12]} Nge7 {[%emt 0:07:14]} 9. b4 {[%emt 0:02:15]} Bb6 {[%emt 0:00:30]} 10. Bg5 {[%emt 0:00:17]} Qg6 {[%emt 0:04:15]} 11. Bh4 {[%emt 0:00:07]} Bh3 {[%emt 0:27:53]} 12. Bg3 {[%emt 0:19:27]} Be6 {[%emt 0:00:06]} 13. Nbd2 {[%emt 0:01:46]} O-O {[%emt 0:00:14]} 14. b5 {[%emt 0:05:48]} Nd8 {[%emt 0:04:06]} 15. Nd4 {[%emt 0:06:40]} d5 {[%emt 0:02:28]} 16. Bf3 {[%emt 0:12:33]} dxe4 {[%emt 0:02:31]} 17. Bxe4 {[%emt 0:13:06]} Qh6 {[%emt 0:00:09]} 18. N2f3 {[%emt 0:02:54]} c6 {[%emt 0:10:18]} 19. Re1 {[%emt 0:23:10]} Re8 {[%emt 0:11:23]} 20. a4 {[%emt 0:00:36]} Ba5 {[%emt 0:00:14]} 21. Rc1 {[%emt 0:00:34]} Rc8 {[%emt 0:00:43]} 22. Ne5 {[%emt 0:04:14]} Nd5 {[%emt 0:02:41]} 23. Qf3 {[%emt 0:00:27]} Nxc3 {[%emt 0:03:35]} 24. Nf5 {[%emt 0:00:46]} Bxf5 {[%emt 0:03:44]} 25. Bxf5 {[%emt 0:00:01]} Nxa4 {[%emt 0:01:06]} 26. Ng4 {[%emt 0:01:13]} 1-0

[Event "POL-chT DMP Ekstraliga 2019"]
[Site "Katowice"]
[Date "2019.08.30"]
[Round "3.11"]
[White "Kantans, Toms"]
[Black "Jakubowski, Krzysztof"]
[Result "0-1"]
[ECO "C44"]
[WhiteElo "2490"]
[BlackElo "2518"]
[Annotator "ChessBase"]
[PlyCount "152"]
[EventDate "2019.08.28"]
[EventType "team-tourn"]
[EventCountry "POL"]
[SourceTitle "playchess.com"]
[Source "ChessBase"]
[SourceQuality "1"]
[TimeControl "40/5400+30:1800+30"]

1. e4 {[%emt 0:00:00]} e5 {[%emt 0:00:00]} 2. Nf3 {[%emt 0:00:00]} Nc6 {[%emt 0:00:00]} 3. d4 {[%emt 0:00:44]} exd4 {[%emt 0:00:20]} 4. Nxd4 {[%emt 0:00:06]} Nf6 {[%emt 0:00:34]} 5. Nxc6 {[%emt 0:00:19]} bxc6 {[%emt 0:00:09]} 6. Qe2 {[%emt 0:01:07]} Bc5 {[%emt 0:00:49]} 7. Be3 {[%emt 0:10:34]} Bxe3 {[%emt 0:05:24]} 8. Qxe3 {[%emt 0:00:05]} Rb8 {[%emt 0:00:06]} 9. Qxa7 {[%emt 0:15:10]} Rxb2 {[%emt 0:01:56]} 10. Bd3 {[%emt 0:00:25]} Rb6 {[%emt 0:15:39]} 11. O-O {[%emt 0:03:39]} O-O {[%emt 0:00:55]} 12. a4 {[%emt 0:05:06]} d5 {[%emt 0:22:56]} 13. a5 {[%emt 0:13:29]} Rb7 {[%emt 0:00:45]} 14. Qc5 {[%emt 0:05:33]} dxe4 {[%emt 0:02:56]} 15. a6 {[%emt 0:05:57]} Rb8 {[%emt 0:06:12]} 16. Be2 {[%emt 0:08:41]} Qd5 {[%emt 0:02:42]} 17. Qa7 {[%emt 0:06:46]} Bg4 {[%emt 0:03:04]} 18. Bxg4 {[%emt 0:03:27]} Qe5 {[%emt 0:00:25]} 19. Nd2 {[%emt 0:02:25]} Nxg4 {[%emt 0:02:27]} 20. f4 {[%emt 0:01:43]} Qe7 {[%emt 0:15:11]} 21. h3 {[%emt 0:04:39]} Ra8 {[%emt 0:02:47]} 22. Qd4 {[%emt 0:00:37]} Rfd8 {[%emt 0:00:18]} 23. Qc3 {[%emt 0:00:22]} Nf6 {[%emt 0:00:17]} 24. Nb3 {[%emt 0:02:44]} e3 {[%emt 0:02:57]} 25. Qc5 {[%emt 0:06:09]} Qe4 {[%emt 0:00:47]} 26. Qe5 {[%emt 0:02:15]} Qxc2 {[%emt 0:03:18]} 27. Nd4 {[%emt 0:00:04]} Qc4 {[%emt 0:00:31]} 28. Nf5 {[%emt 0:00:23]} e2 {[%emt 0:04:39]} 29. Rfc1 {[%emt 0:00:39]} Rxa6 {[%emt 0:01:48]} 30. Rxc4 {[%emt 0:00:59]} Rxa1+ {[%emt 0:00:08]} 31. Kf2 {[%emt 0:00:09]} e1=Q+ {[%emt 0:02:53]} 32. Qxe1 {[%emt 0:00:02]} Rxe1 {[%emt 0:00:04]} 33. Kxe1 {[%emt 0:00:04]} Re8+ {[%emt 0:00:05]} 34. Kd2 {[%emt 0:01:10]} g6 {[%emt 0:00:58]} 35. Ne3 {[%emt 0:00:56]} Re6 {[%emt 0:00:22]} 36. f5 {[%emt 0:00:55]} Rd6+ {[%emt 0:00:52]} 37. Ke2 {[%emt 0:00:00]} g5 {[%emt 0:00:32]} 38. h4 {[%emt 0:00:54]} h6 {[%emt 0:00:16]} 39. hxg5 {[%emt 0:00:04]} hxg5 {[%emt 0:00:01]} 40. Nc2 {[%emt 0:00:00]} Nd5 {[%emt 0:00:00]} 41. Kf3 {[%emt 0:06:09]} Nb6 {[%emt 0:02:52]} 42. Rc3 {[%emt 0:02:27]} Nd7 {[%emt 0:00:56]} 43. Kg4 {[%emt 0:05:18]} Nf6+ {[%emt 0:02:07]} 44. Kf3 {[%emt 0:01:19]} g4+ {[%emt 0:00:33]} 45. Ke2 {[%emt 0:00:10]} Kg7 {[%emt 0:01:39]} 46. Nb4 {[%emt 0:01:09]} Nd5 {[%emt 0:03:52]} 47. Rc4 {[%emt 0:11:53]} Nxb4 {[%emt 0:00:24]} 48. Rxg4+ {[%emt 0:00:09]} Kf6 {[%emt 0:00:05]} 49. Rxb4 {[%emt 0:00:02]} Kxf5 {[%emt 0:00:07]} 50. Rc4 {[%emt 0:00:31]} Ke5 {[%emt 0:00:55]} 51. Rc1 {[%emt 0:00:08]} Kd4 {[%emt 0:03:38]} 52. Rd1+ {[%emt 0:00:09]} Ke4 {[%emt 0:00:22]} 53. Rc1 {[%emt 0:00:04]} Re6 {[%emt 0:02:06]} 54. Kf2 {[%emt 0:00:33]} Rf6+ {[%emt 0:00:13]} 55. Ke2 {[%emt 0:00:56]} Re6 {[%emt 0:01:35]} 56. Kf2 {[%emt 0:00:05]} Kd4 {[%emt 0:03:13]} 57. Rd1+ {[%emt 0:00:07]} Kc4 {[%emt 0:00:06]} 58. Rc1+ {[%emt 0:00:06]} Kb5 {[%emt 0:00:38]} 59. Rb1+ {[%emt 0:00:06]} Ka6 {[%emt 0:00:08]} 60. Ra1+ {[%emt 0:01:19]} Kb7 {[%emt 0:00:08]} 61. Rb1+ {[%emt 0:00:03]} Kc8 {[%emt 0:00:08]} 62. Rc1 {[%emt 0:00:08]} Kd7 {[%emt 0:00:07]} 63. Kf3 {[%emt 0:01:01]} Re5 {[%emt 0:00:34]} 64. Kf4 {[%emt 0:02:39]} Rd5 {[%emt 0:02:18]} 65. g4 {[%emt 0:00:09]} c5 {[%emt 0:01:04]} 66. g5 {[%emt 0:02:55]} Kc6 {[%emt 0:01:29]} 67. Kg4 {[%emt 0:01:14]} Kd6 {[%emt 0:05:56]} 68. Rf1 {[%emt 0:02:47]} Ke7 {[%emt 0:00:34]} 69. Rc1 {[%emt 0:01:52]} Kf8 {[%emt 0:00:19]} 70. Kf4 {[%emt 0:00:35]} Kg7 {[%emt 0:00:14]} 71. Ra1 {[%emt 0:00:18]} c4 {[%emt 0:03:21]} 72. Ke4 {[%emt 0:00:31]} Rxg5 {[%emt 0:00:20]} 73. Ra7 {[%emt 0:00:05]} Rc5 {[%emt 0:01:40]} 74. Kd4 {[%emt 0:00:04]} Rc6 {[%emt 0:00:04]} 75. Kd5 {[%emt 0:00:07]} Rd6+ {[%emt 0:00:05]} 76. Kxc4 {[%emt 0:00:05]} Rd7 {[%emt 0:00:04] Kd4} 0-1

[Event "POL-chT DMP Ekstraliga 2019"]
[Site "Katowice"]
[Date "2019.08.30"]
[Round "3.12"]
[White "Buksa, Nataliya"]
[Black "Warakomska, Anna"]
[Result "1/2-1/2"]
[ECO "B12"]
[WhiteElo "2406"]
[BlackElo "2241"]
[Annotator "NA"]
[PlyCount "95"]
[EventDate "2019.08.28"]
[EventType "team-tourn"]
[EventCountry "POL"]
[SourceTitle "playchess.com"]
[Source "ChessBase"]
[SourceQuality "1"]
[TimeControl "40/5400+30:1800+30"]

1. e4 {[%emt 0:00:00]} c6 {[%emt 0:00:00]} 2. d4 {[%emt 0:00:46]} d5 {[%emt 0:00:00]} 3. e5 {[%emt 0:00:30]} Bf5 {[%emt 0:00:05]} 4. Nd2 {[%emt 0:00:04]} e6 {[%emt 0:00:24]} 5. Nb3 {[%emt 0:00:04]} c5 {[%emt 0:00:27]} 6. dxc5 {[%emt 0:00:23]} Bxc5 {[%emt 0:00:38]} 7. Nxc5 {[%emt 0:00:10]} Qa5+ {[%emt 0:00:02]} 8. c3 {[%emt 0:00:03]} Qxc5 {[%emt 0:00:06]} 9. Be3 {[%emt 0:00:13]} Qc7 {[%emt 0:00:24]} 10. f4 {[%emt 0:00:04]} Ne7 {[%emt 0:01:09]} 11. Nf3 {[%emt 0:01:04]} Nbc6 {[%emt 0:01:07]} 12. Be2 {[%emt 0:00:15]} O-O {[%emt 0:00:59]} 13. O-O {[%emt 0:00:06]} Rad8 {[%emt 0:00:58]} 14. Qd2 {[%emt 0:04:31]} f6 {[%emt 0:09:14]} 15. exf6 {[%emt 0:18:20]} Rxf6 {[%emt 0:01:28]} 16. Rae1 {[%emt 0:14:54]} Nc8 {[%emt 0:17:31]} 17. Bd4 {[%emt 0:00:07]} Nxd4 {[%emt 0:12:20]} 18. Qxd4 {[%emt 0:01:00]} Qb6 {[%emt 0:11:18]} 19. Qxb6 {[%emt 0:02:01]} Nxb6 {[%emt 0:00:46]} 20. Nd4 {[%emt 0:13:29]} Be4 {[%emt 0:07:54]} 21. Bf3 {[%emt 0:13:56]} Bxf3 {[%emt 0:12:01]} 22. Rxf3 {[%emt 0:00:22]} Nc4 {[%emt 0:01:57]} 23. Nxe6 {[%emt 0:04:59]} Rd6 {[%emt 0:10:12]} 24. Nc5 {[%emt 0:05:21]} Nxb2 {[%emt 0:02:52]} 25. Rb1 {[%emt 0:00:31]} b6 {[%emt 0:00:56]} 26. Nb7 {[%emt 0:02:11]} Rd7 {[%emt 0:00:08]} 27. Rxb2 {[%emt 0:00:55]} Rxb7 {[%emt 0:00:06]} 28. Rd2 {[%emt 0:00:04]} Rbf7 {[%emt 0:03:55]} 29. Rd4 {[%emt 0:05:43]} g5 {[%emt 0:02:37]} 30. Rg3 {[%emt 0:02:06]} h6 {[%emt 0:00:19]} 31. h3 {[%emt 0:10:41]} Rxf4 {[%emt 0:00:24]} 32. Rxd5 {[%emt 0:00:03]} Ra4 {[%emt 0:02:30]} 33. Rd2 {[%emt 0:00:04]} Kg7 {[%emt 0:00:28]} 34. Re3 {[%emt 0:00:03]} Ra3 {[%emt 0:00:34]} 35. Kh2 {[%emt 0:01:09]} Rc7 {[%emt 0:00:40]} 36. Re6 {[%emt 0:00:44]} Raxc3 {[%emt 0:00:35]} 37. Rdd6 {[%emt 0:00:03]} Rc2 {[%emt 0:00:45]} 38. Rg6+ {[%emt 0:00:06]} Kf7 {[%emt 0:00:06]} 39. Rxh6 {[%emt 0:00:13]} Re7 {[%emt 0:00:54]} 40. Rh7+ {[%emt 0:00:00]} Ke8 {[%emt 0:00:00]} 41. Rh8+ {[%emt 0:09:29]} Kf7 {[%emt 0:00:24]} 42. Rh5 {[%emt 0:02:19]} g4 {[%emt 0:07:34]} 43. hxg4 {[%emt 0:02:33]} Rxa2 {[%emt 0:04:46]} 44. Rh7+ {[%emt 0:09:33]} Ke8 {[%emt 0:00:05]} 45. Rh8+ {[%emt 0:00:07]} Kf7 {[%emt 0:00:04]} 46. Rh7+ {[%emt 0:01:35]} Ke8 {[%emt 0:00:05]} 47. Rh8+ {[%emt 0:00:03]} Kf7 {[%emt 0:00:05]} 48. Rh7+ {[%emt 0:00:05]} 1/2-1/2

[Event "POL-chT DMP Ekstraliga 2019"]
[Site "Katowice"]
[Date "2019.08.30"]
[Round "3.17"]
[White "Osmak, Iulija"]
[Black "Miton, Kamil"]
[Result "1/2-1/2"]
[ECO "B01"]
[WhiteElo "2414"]
[BlackElo "2589"]
[Annotator "ChessBase"]
[PlyCount "84"]
[EventDate "2019.08.28"]
[EventType "team-tourn"]
[EventCountry "POL"]
[SourceTitle "playchess.com"]
[Source "ChessBase"]
[SourceQuality "1"]
[TimeControl "40/5400+30:1800+30"]

1. e4 {[%emt 0:00:00]} d5 {[%emt 0:00:07]} 2. exd5 {[%emt 0:00:00]} Qxd5 {[%emt 0:00:07]} 3. Nc3 {[%emt 0:00:17]} Qd8 {[%emt 0:00:07]} 4. d4 {[%emt 0:00:33]} Nf6 {[%emt 0:00:16]} 5. Nf3 {[%emt 0:00:44]} g6 {[%emt 0:00:14]} 6. Bc4 {[%emt 0:03:36]} Bg7 {[%emt 0:00:14]} 7. O-O {[%emt 0:00:10]} O-O {[%emt 0:00:06]} 8. Re1 {[%emt 0:04:27]} Nc6 {[%emt 0:01:07]} 9. h3 {[%emt 0:03:46]} b6 {[%emt 0:04:34]} 10. Be3 {[%emt 0:08:40]} e6 {[%emt 0:05:04]} 11. Qe2 {[%emt 0:05:34]} Bb7 {[%emt 0:04:05]} 12. Rad1 {[%emt 0:00:20]} Ne7 {[%emt 0:01:56]} 13. Ne5 {[%emt 0:07:18]} Nf5 {[%emt 0:04:24]} 14. Ba6 {[%emt 0:03:57]} Qc8 {[%emt 0:18:07]} 15. Bxb7 {[%emt 0:00:40]} Qxb7 {[%emt 0:00:05]} 16. Bg5 {[%emt 0:11:27]} Nd5 {[%emt 0:18:14]} 17. Nxd5 {[%emt 0:04:16]} exd5 {[%emt 0:02:46]} 18. Nd7 {[%emt 0:07:04]} Rfc8 {[%emt 0:01:44]} 19. c3 {[%emt 0:10:39]} c5 {[%emt 0:03:16]} 20. Nf6+ {[%emt 0:00:31]} Bxf6 {[%emt 0:00:30]} 21. Bxf6 {[%emt 0:00:04]} Qc6 {[%emt 0:00:10]} 22. Be5 {[%emt 0:04:36]} Re8 {[%emt 0:01:16]} 23. Qf3 {[%emt 0:01:14]} f6 {[%emt 0:06:04]} 24. Bxf6 {[%emt 0:04:30]} Qxf6 {[%emt 0:01:17]} 25. g4 {[%emt 0:00:22]} cxd4 {[%emt 0:03:55]} 26. Qxd5+ {[%emt 0:03:17]} Kh8 {[%emt 0:03:07]} 27. gxf5 {[%emt 0:00:05]} dxc3 {[%emt 0:00:16]} 28. bxc3 {[%emt 0:01:16]} gxf5 {[%emt 0:02:56]} 29. Qd4 {[%emt 0:04:41]} Rxe1+ {[%emt 0:01:25]} 30. Rxe1 {[%emt 0:00:05]} Qxd4 {[%emt 0:00:20]} 31. cxd4 {[%emt 0:00:03]} Rd8 {[%emt 0:00:08]} 32. Re7 {[%emt 0:02:45]} a5 {[%emt 0:00:43]} 33. Re6 {[%emt 0:00:26]} Rxd4 {[%emt 0:00:57]} 34. Rxb6 {[%emt 0:00:03]} Ra4 {[%emt 0:00:11]} 35. Rb7 {[%emt 0:07:52]} Kg8 {[%emt 0:01:26]} 36. Kg2 {[%emt 0:00:17]} Rxa2 {[%emt 0:01:56]} 37. Rb5 {[%emt 0:01:44]} f4 {[%emt 0:00:07]} 38. Rf5 {[%emt 0:00:02]} Ra4 {[%emt 0:00:19]} 39. Kf3 {[%emt 0:00:07]} Kg7 {[%emt 0:00:32]} 40. Kg4 {[%emt 0:00:00]} Kg6 {[%emt 0:00:00]} 41. f3 {[%emt 0:00:31]} Ra1 {[%emt 0:08:13]} 42. Rb5 {[%emt 0:05:57]} h5+ {[%emt 0:08:37]} 1/2-1/2

[Event "POL-chT DMP Ekstraliga 2019"]
[Site "Katowice"]
[Date "2019.08.30"]
[Round "3.18"]
[White "Socko, Monika"]
[Black "Leks, Maria"]
[Result "1-0"]
[ECO "D70"]
[WhiteElo "2436"]
[BlackElo "2129"]
[Annotator "NA"]
[PlyCount "73"]
[EventDate "2019.08.28"]
[EventType "team-tourn"]
[EventCountry "POL"]
[SourceTitle "playchess.com"]
[Source "ChessBase"]
[SourceQuality "1"]
[TimeControl "40/5400+30:1800+30"]

1. d4 {[%emt 0:00:00]} d5 {[%emt 0:00:00]} 2. c4 {[%emt 0:00:00]} c6 {[%emt 0:00:00]} 3. Nf3 {[%emt 0:00:00]} Nf6 {[%emt 0:00:00]} 4. Nbd2 {[%emt 0:00:00]} Bf5 {[%emt 0:00:17]} 5. g3 {[%emt 0:00:00]} e6 {[%emt 0:00:35]} 6. Bg2 {[%emt 0:00:02]} Nbd7 {[%emt 0:01:37]} 7. Nh4 {[%emt 0:00:24]} Bg6 {[%emt 0:01:38]} 8. Nxg6 {[%emt 0:01:10]} hxg6 {[%emt 0:00:06]} 9. O-O {[%emt 0:04:30]} Bb4 {[%emt 0:05:34]} 10. Qc2 {[%emt 0:05:16]} Bxd2 {[%emt 0:07:05]} 11. Bxd2 {[%emt 0:00:06]} O-O {[%emt 0:00:52]} 12. a4 {[%emt 0:05:45]} dxc4 {[%emt 0:10:36]} 13. Qxc4 {[%emt 0:02:30]} e5 {[%emt 0:00:06]} 14. a5 {[%emt 0:07:42]} a6 {[%emt 0:06:32]} 15. e4 {[%emt 0:09:28]} exd4 {[%emt 0:08:16]} 16. Bf4 {[%emt 0:07:48]} d3 {[%emt 0:21:24]} 17. Qxd3 {[%emt 0:07:12]} Nc5 {[%emt 0:00:25]} 18. Qc4 {[%emt 0:02:00]} Qe7 {[%emt 0:00:16]} 19. b4 {[%emt 0:08:05]} Ne6 {[%emt 0:06:06]} 20. Be3 {[%emt 0:00:31]} Rfd8 {[%emt 0:04:51]} 21. f4 {[%emt 0:01:41]} Nc7 {[%emt 0:07:33]} 22. Rae1 {[%emt 0:06:24]} Nb5 {[%emt 0:06:20]} 23. Bc5 {[%emt 0:03:56]} Qd7 {[%emt 0:01:13]} 24. Bb6 {[%emt 0:02:16]} Qd3 {[%emt 0:00:37]} 25. Qc1 {[%emt 0:00:57]} Re8 {[%emt 0:02:28]} 26. Re3 {[%emt 0:02:47]} Qd7 {[%emt 0:00:04]} 27. Rd1 {[%emt 0:01:43]} Qe6 {[%emt 0:00:06]} 28. Qc2 {[%emt 0:02:45]} Ng4 {[%emt 0:05:19]} 29. Red3 {[%emt 0:00:49]} g5 {[%emt 0:03:09]} 30. h3 {[%emt 0:02:07]} Nf6 {[%emt 0:00:15]} 31. fxg5 {[%emt 0:00:57]} Nh5 {[%emt 0:01:25]} 32. Qf2 {[%emt 0:01:40]} Qe5 {[%emt 0:00:32]} 33. Rf1 {[%emt 0:01:03]} Qxg5 {[%emt 0:00:16]} 34. Qxf7+ {[%emt 0:00:55]} Kh8 {[%emt 0:00:05]} 35. Rf5 {[%emt 0:02:00]} Qc1+ {[%emt 0:00:15]} 36. Kh2 {[%emt 0:00:29]} Nf6 {[%emt 0:00:19]} 37. Rxf6 {[%emt 0:00:24]} 1-0

[Event "POL-chT DMP Ekstraliga 2019"]
[Site "Katowice"]
[Date "2019.08.30"]
[Round "3.21"]
[White "Skawinski, Arkadiusz"]
[Black "Tazbir, Marcin"]
[Result "1-0"]
[ECO "C70"]
[WhiteElo "2398"]
[BlackElo "2521"]
[Annotator "ChessBase"]
[PlyCount "127"]
[EventDate "2019.08.28"]
[EventType "team-tourn"]
[EventCountry "POL"]
[SourceTitle "playchess.com"]
[Source "ChessBase"]
[SourceQuality "1"]
[TimeControl "40/5400+30:1800+30"]

1. e4 {[%emt 0:00:00]} e5 {[%emt 0:00:00]} 2. Nf3 {[%emt 0:00:00]} Nc6 {[%emt 0:00:00]} 3. Bb5 {[%emt 0:00:00]} a6 {[%emt 0:00:04]} 4. Ba4 {[%emt 0:00:00]} Nge7 {[%emt 0:00:09]} 5. c3 {[%emt 0:00:37]} g6 {[%emt 0:00:52]} 6. d4 {[%emt 0:00:04]} exd4 {[%emt 0:00:09]} 7. cxd4 {[%emt 0:00:04]} Bg7 {[%emt 0:00:05]} 8. Nc3 {[%emt 0:05:33]} b5 {[%emt 0:02:20]} 9. Bb3 {[%emt 0:00:11]} Na5 {[%emt 0:04:24]} 10. Bc2 {[%emt 0:00:14]} d6 {[%emt 0:01:54]} 11. h3 {[%emt 0:07:02]} O-O {[%emt 0:05:55]} 12. O-O {[%emt 0:00:06]} c5 {[%emt 0:03:22]} 13. Ne2 {[%emt 0:20:25]} Qb6 {[%emt 0:09:26]} 14. b3 {[%emt 0:14:08]} c4 {[%emt 0:09:18]} 15. d5 {[%emt 0:09:20]} Bd7 {[%emt 0:25:29]} 16. Be3 {[%emt 0:00:56]} Qc7 {[%emt 0:00:23]} 17. b4 {[%emt 0:05:00]} Nb7 {[%emt 0:00:20]} 18. Bd4 {[%emt 0:00:04]} a5 {[%emt 0:02:12]} 19. Bxg7 {[%emt 0:03:48]} Kxg7 {[%emt 0:00:05]} 20. Qd4+ {[%emt 0:00:02]} f6 {[%emt 0:00:07]} 21. a3 {[%emt 0:00:04]} Nd8 {[%emt 0:01:47]} 22. Nc3 {[%emt 0:00:59]} Nf7 {[%emt 0:01:10]} 23. Qe3 {[%emt 0:05:36]} Rfe8 {[%emt 0:03:42]} 24. Nd4 {[%emt 0:02:07]} Qb7 {[%emt 0:05:54]} 25. Qd2 {[%emt 0:03:05]} Ra6 {[%emt 0:08:05]} 26. bxa5 {[%emt 0:05:08]} Rxa5 {[%emt 0:00:55]} 27. Rfb1 {[%emt 0:02:54]} Qa6 {[%emt 0:01:16]} 28. Rb4 {[%emt 0:02:41]} Rxa3 {[%emt 0:07:57]} 29. Rxa3 {[%emt 0:00:08]} Qxa3 {[%emt 0:00:02]} 30. Ncxb5 {[%emt 0:00:08]} Qa5 {[%emt 0:00:05]} 31. Qc3 {[%emt 0:02:40]} Rb8 {[%emt 0:01:11]} 32. Rxc4 {[%emt 0:07:47]} Rxb5 {[%emt 0:00:37]} 33. Qxa5 {[%emt 0:00:22]} Rxa5 {[%emt 0:00:04]} 34. Rc7 {[%emt 0:00:05]} Ne5 {[%emt 0:04:52]} 35. f4 {[%emt 0:00:07]} Rc5 {[%emt 0:00:15]} 36. Rb7 {[%emt 0:01:28]} Kf8 {[%emt 0:01:15]} 37. fxe5 {[%emt 0:01:08]} fxe5 {[%emt 0:00:07]} 38. Nb3 {[%emt 0:01:07]} Rxc2 {[%emt 0:01:08]} 39. Rxd7 {[%emt 0:00:29]} Re2 {[%emt 0:01:21]} 40. Rxd6 {[%emt 0:00:00]} Rxe4 {[%emt 0:00:00]} 41. Rd8+ {[%emt 0:00:48]} Kf7 {[%emt 0:02:01]} 42. d6 {[%emt 0:02:36]} Ng8 {[%emt 0:05:10]} 43. Rd7+ {[%emt 0:02:06]} Ke8 {[%emt 0:01:11]} 44. Nc5 {[%emt 0:06:43]} Re1+ {[%emt 0:08:19]} 45. Kh2 {[%emt 0:00:49]} Rd1 {[%emt 0:03:51]} 46. Rg7 {[%emt 0:00:57]} Kf8 {[%emt 0:00:45]} 47. Ne6+ {[%emt 0:05:55]} Ke8 {[%emt 0:00:19]} 48. Rxg8+ {[%emt 0:00:11]} Kf7 {[%emt 0:00:07]} 49. d7 {[%emt 0:00:02]} Rxd7 {[%emt 0:00:28]} 50. Nc5 {[%emt 0:00:02]} Rd4 {[%emt 0:03:34]} 51. Ra8 {[%emt 0:00:36]} h5 {[%emt 0:00:20]} 52. Ra4 {[%emt 0:00:05]} Rd5 {[%emt 0:00:51]} 53. Ne4 {[%emt 0:00:05]} Ke6 {[%emt 0:00:13]} 54. Ra6+ {[%emt 0:00:47]} Kf7 {[%emt 0:01:08]} 55. Ng5+ {[%emt 0:00:17]} Kg7 {[%emt 0:00:06]} 56. h4 {[%emt 0:00:08]} Rb5 {[%emt 0:00:11]} 57. Re6 {[%emt 0:00:29]} Rb4 {[%emt 0:00:22]} 58. g3 {[%emt 0:00:08]} Rb2+ {[%emt 0:00:22]} 59. Kh3 {[%emt 0:07:45]} Re2 {[%emt 0:00:08]} 60. Nf3 {[%emt 0:00:34]} e4 {[%emt 0:00:12]} 61. Ne5 {[%emt 0:01:01]} Re1 {[%emt 0:00:42]} 62. Nxg6 {[%emt 0:00:24]} Kf7 {[%emt 0:00:33]} 63. Nf4 {[%emt 0:00:05]} e3 {[%emt 0:00:10]} 64. Kg2 {[%emt 0:00:13]} 1-0

[Event "POL-chT DMP Ekstraliga 2019"]
[Site "Katowice"]
[Date "2019.08.30"]
[Round "3.22"]
[White "Sadzikowski, Daniel"]
[Black "Butkiewicz, Lukasz"]
[Result "1/2-1/2"]
[ECO "B10"]
[WhiteElo "2502"]
[BlackElo "2436"]
[Annotator "ChessBase"]
[PlyCount "37"]
[EventDate "2019.08.28"]
[EventType "team-tourn"]
[EventCountry "POL"]
[SourceTitle "playchess.com"]
[Source "ChessBase"]
[SourceQuality "1"]
[TimeControl "40/5400+30:1800+30"]

1. e4 {[%emt 0:00:00]} c6 {[%emt 0:00:00]} 2. Nc3 {[%emt 0:00:42]} d5 {[%emt 0:01:05]} 3. Nf3 {[%emt 0:00:05]} g6 {[%emt 0:02:34]} 4. d4 {[%emt 0:00:10]} Bg7 {[%emt 0:00:55]} 5. h3 {[%emt 0:00:01]} Nf6 {[%emt 0:01:04]} 6. e5 {[%emt 0:02:35]} Ne4 {[%emt 0:00:35]} 7. Nxe4 {[%emt 0:00:02]} dxe4 {[%emt 0:00:05]} 8. Ng5 {[%emt 0:00:07]} c5 {[%emt 0:00:24]} 9. dxc5 {[%emt 0:00:02]} Qxd1+ {[%emt 0:04:54]} 10. Kxd1 {[%emt 0:00:03]} Nc6 {[%emt 0:01:01]} 11. Bb5 {[%emt 0:31:40]} Bxe5 {[%emt 0:06:13]} 12. c3 {[%emt 0:11:38]} f5 {[%emt 0:11:35]} 13. Bc4 {[%emt 0:02:20]} Bf6 {[%emt 0:01:27]} 14. f3 {[%emt 0:14:19]} exf3 {[%emt 0:07:52]} 15. gxf3 {[%emt 0:00:01]} Bd7 {[%emt 0:00:54]} 16. Bf7+ {[%emt 0:03:09]} Kf8 {[%emt 0:01:11]} 17. Bd5 {[%emt 0:00:16]} Kg7 {[%emt 0:06:43]} 18. Ne6+ {[%emt 0:01:03]} Bxe6 {[%emt 0:00:55]} 19. Bxe6 {[%emt 0:00:11]} 1/2-1/2

[Event "POL-chT DMP Ekstraliga 2019"]
[Site "Katowice"]
[Date "2019.08.30"]
[Round "3.23"]
[White "Bronowicki, Mateusz"]
[Black "Wieczorek, Oskar"]
[Result "0-1"]
[ECO "D71"]
[WhiteElo "2271"]
[BlackElo "2497"]
[Annotator "ChessBase"]
[PlyCount "62"]
[EventDate "2019.08.28"]
[EventType "team-tourn"]
[EventCountry "POL"]
[SourceTitle "playchess.com"]
[Source "ChessBase"]
[SourceQuality "1"]
[TimeControl "40/5400+30:1800+30"]

1. d4 {[%emt 0:00:00]} Nf6 {[%emt 0:00:25]} 2. c4 {[%emt 0:00:00]} g6 {[%emt 0:00:10]} 3. g3 {[%emt 0:00:24]} Bg7 {[%emt 0:01:16]} 4. Bg2 {[%emt 0:00:13]} O-O {[%emt 0:01:07]} 5. Nc3 {[%emt 0:00:16]} d6 {[%emt 0:00:17]} 6. e4 {[%emt 0:06:20]} c5 {[%emt 0:02:29]} 7. d5 {[%emt 0:13:09]} e6 {[%emt 0:07:00]} 8. Nge2 {[%emt 0:06:52]} Na6 {[%emt 0:04:02]} 9. O-O {[%emt 0:05:33]} exd5 {[%emt 0:01:14]} 10. exd5 {[%emt 0:02:07]} Nc7 {[%emt 0:00:24]} 11. a3 {[%emt 0:04:25]} b5 {[%emt 0:09:00]} 12. b4 {[%emt 0:13:08]} cxb4 {[%emt 0:05:55]} 13. axb4 {[%emt 0:00:31]} bxc4 {[%emt 0:00:35]} 14. Be3 {[%emt 0:10:29]} a6 {[%emt 0:06:37]} 15. b5 {[%emt 0:10:55]} axb5 {[%emt 0:07:33]} 16. Rxa8 {[%emt 0:00:09]} Nxa8 {[%emt 0:00:07]} 17. Nxb5 {[%emt 0:00:30]} Bf5 {[%emt 0:11:59]} 18. Ned4 {[%emt 0:01:50]} Bd3 {[%emt 0:02:38]} 19. Nc6 {[%emt 0:04:19]} Qd7 {[%emt 0:00:36]} 20. Re1 {[%emt 0:00:04]} Nc7 {[%emt 0:01:40]} 21. Nxc7 {[%emt 0:07:58]} Qxc7 {[%emt 0:00:13]} 22. Bd4 {[%emt 0:00:06]} Qb7 {[%emt 0:10:37]} 23. h3 {[%emt 0:05:34]} Re8 {[%emt 0:04:05]} 24. Rxe8+ {[%emt 0:02:00]} Nxe8 {[%emt 0:00:11]} 25. Bxg7 {[%emt 0:01:47]} Kxg7 {[%emt 0:07:26]} 26. g4 {[%emt 0:01:05]} Qb2 {[%emt 0:04:52]} 27. Bf1 {[%emt 0:00:32]} Bxf1 {[%emt 0:01:48]} 28. Kxf1 {[%emt 0:02:06]} Nf6 {[%emt 0:00:17]} 29. Nd4 {[%emt 0:01:17]} Nxd5 {[%emt 0:02:55]} 30. Nf5+ {[%emt 0:00:08]} gxf5 {[%emt 0:00:07]} 31. Qxd5 {[%emt 0:00:05]} Qb1+ {[%emt 0:00:42]} 0-1